fUSD/lending_fUSD_20250606
["ID","MTS","AMOUNT","RATE_DAILY","PERIOD"]
[364786310,1749241860075,-624.52,0.00027726,5]
[364786311,1749241860085,-1651.89,0.00027726,5]
[364786312,1749241860095,-4800.822384,0.00027726,7]
[364786313,1749241860105,-480.0,0.00027726,5]
[364786314,1749241860114,-4800.822384,0.00027726,7]
[364786315,1749241860123,-480.0,0.00027726,5]
[364786316,1749241860133,-869.35,0.00027726,5]
[364786317,1749241860143,-360.792683,0.00027726,5]
[364786318,1749241860154,-718.31,0.00027726,5]
[364786319,1749241860164,-567.05,0.00027726,5]
[364786320,1749241860174,-593.22,0.00027726,5]
[364786321,1749241860183,-724.33,0.00027726,5]
[364786322,1749241860193,-1529.35,0.00027726,5]
[364786323,1749241860203,-586.21,0.00027726,5]
[364786324,1749241860212,-151.0,0.00027726,7]
[364786325,1749241860222,-618.5,0.00027726,5]
[364786326,1749241860232,-480.0,0.00027726,5]
[364786327,1749241860242,-645.12,0.00027726,5]
[364786328,1749241860252,-1029.88,0.00027726,5]
[364786329,1749241860261,-856.04,0.00027726,5]
[364786330,1749241860271,-151.0,0.00027726,7]
[364786331,1749241860281,-1316.83,0.00027726,5]
[364786332,1749241860290,-1219.25,0.00027726,5]
[364786333,1749241860300,-937.26,0.00027726,5]
[364786334,1749241860310,-480.0,0.00027726,2]
[364786335,1749241860320,-2376.4,0.00027726,5]
[364786336,1749241860329,-481.35,0.00027726,5]
[364786337,1749241860339,-1691.35,0.00027726,5]
[364786338,1749241860348,-721.055128,0.00027726,7]
[364786339,1749241860357,-721.055128,0.00027726,7]
[364786340,1749241860367,-480.0,0.00027726,5]
[364786341,1749241860376,-499.06303799,0.00027726,5]
[364786342,1749241860386,-480.0,0.00027726,5]
[364786343,1749241860395,-874.97,0.00027726,5]
[364786344,1749241860405,-480.0,0.00027726,5]
[364786345,1749241860416,-721.055128,0.00027726,7]
[364786346,1749241860426,-721.055128,0.00027726,7]
[364786347,1749241860436,-561.75823326,0.00027726,5]
[364786348,1749241860445,-480.0,0.00027726,5]
[364786349,1749241860455,-951.49,0.00027726,5]
[364786350,1749241860465,-508.0,0.00027732,5]
[364786351,1749241860475,-833.32850399,0.00027735,2]
[364786352,1749241860484,-787.0,0.00027753,5]
[364786353,1749241860495,-1038.0,0.00027753,5]
[364786354,1749241860504,-500.0,0.00027753,5]
[364786355,1749241860515,-504.52442924,0.00027773,5]
[364786356,1749241860526,-500.0,0.00027773,5]
[364786357,1749241860536,-500.0,0.00027773,5]
[364786358,1749241860547,-152.0,0.00027779,3]
[364786359,1749241860557,-151.0,0.00027779,3]
[364786360,1749241860566,-161.0,0.00027779,3]
[364786361,1749241860576,-151.0,0.00027779,3]
[364786362,1749241860585,-152.0,0.00027779,3]
[364786363,1749241860594,-253.2642748,0.00027779,3]
[364786364,1749241860603,-151.0,0.00027779,3]
[364786365,1749241860612,-152.0,0.00027779,3]
[364786366,1749241860622,-151.0,0.00027779,3]
[364786367,1749241860631,-152.0,0.00027779,3]
[364786368,1749241860640,-151.0,0.00027779,3]
[364786369,1749241860649,-152.0,0.00027779,3]
[364786370,1749241860659,-151.0,0.00027779,3]
[364786371,1749241860668,-152.0,0.00027779,3]
[364786372,1749241860678,-151.0,0.00027779,3]
[364786373,1749241860687,-152.0,0.00027779,3]
[364786374,1749241860697,-152.0,0.00027779,3]
[364786375,1749241860706,-292.95177789,0.00027779,3]
[364786376,1749241860715,-151.0,0.0002778,7]
[364786377,1749241860724,-167.787558,0.0002778,7]
[364786378,1749241860733,-167.787558,0.0002778,7]
[364786379,1749241860743,-151.0,0.0002778,7]
[364786380,1749241860752,-701.32114,0.0002778,7]
[364786381,1749241860761,-701.32114,0.0002778,7]
[364786382,1749241860773,-787.0,0.0002778,5]
[364786383,1749241860784,-1038.0,0.0002778,5]
[364786384,1749241860794,-500.0,0.0002778,5]
[364786385,1749241860804,-302.26,0.00027794,2]
[364786386,1749241860815,-292.34675082,0.00027798,20]
[364786387,1749241860824,-207.0,0.000278,2]
[364786388,1749241860834,-900.0,0.000278,10]
[364786389,1749241860844,-20637.99,0.000278,2]
[364786390,1749241860853,-787.0,0.00027808,5]
[364786391,1749241860864,-1038.0,0.00027808,5]
[364786392,1749241860875,-500.0,0.00027808,5]
[364786393,1749241860884,-200.0,0.0002783,2]
[364786394,1749241860893,-787.0,0.00027835,5]
[364786395,1749241860903,-1038.0,0.00027835,5]
[364786396,1749241860913,-500.0,0.00027835,5]
[364786397,1749241860923,-150.79,0.00027846,2]
[364786398,1749241860933,-787.0,0.00027862,5]
[364786399,1749241860942,-1038.0,0.00027862,5]
[364786400,1749241860952,-500.0,0.00027862,5]
[364786401,1749241860961,-45580.1186398,0.00027871,2]
[364786402,1749241860971,-152.014466,0.0002788,7]
[364786403,1749241860980,-739.24117,0.0002788,7]
[364786404,1749241860990,-739.24117,0.0002788,7]
[364786405,1749241861000,-151.0,0.0002788,7]
[364786406,1749241861009,-151.0,0.0002788,7]
[364786407,1749241861020,-318.11274148,0.00027889,10]
[364786408,1749241861030,-787.0,0.0002789,5]
[364786409,1749241861041,-1038.0,0.0002789,5]
[364786410,1749241861051,-500.0,0.0002789,5]
[364786411,1749241861061,-151.0,0.0002789,7]
[364786412,1749241861070,-151.0,0.0002789,7]
[364786413,1749241861081,-151.0,0.0002789,7]
[364786414,1749241861094,-151.0,0.0002789,7]
[364786415,1749241861103,-151.0,0.0002789,7]
[364786416,1749241861112,-151.0,0.0002789,7]
[364786417,1749241861122,-151.0,0.0002789,7]
[364786418,1749241861131,-345.109926,0.0002789,7]
[364786419,1749241861141,-345.109926,0.0002789,7]
[364786420,1749241861150,-151.0,0.0002789,7]
[364786421,1749241861161,-151.0,0.0002789,7]
[364786422,1749241861171,-151.0,0.0002789,7]
[364786423,1749241861181,-151.0,0.0002789,7]
[364786424,1749241861191,-151.0,0.0002789,7]
[364786425,1749241861202,-151.0,0.0002789,7]
[364786426,1749241861212,-157.107345,0.0002789,7]
[364786427,1749241861221,-151.0,0.0002789,7]
[364786428,1749241861231,-151.0,0.0002789,7]
[364786429,1749241861241,-151.0,0.0002789,7]
[364786430,1749241861250,-151.0,0.0002789,7]
[364786431,1749241861260,-151.0,0.0002789,7]
[364786432,1749241861269,-151.0,0.0002789,7]
[364786433,1749241861279,-151.0,0.0002789,7]
[364786434,1749241861289,-151.0,0.0002789,7]
[364786435,1749241861299,-151.0,0.0002789,7]
[364786436,1749241861309,-151.0,0.0002789,7]
[364786437,1749241861318,-151.0,0.0002789,7]
[364786438,1749241861328,-151.0,0.0002789,7]
[364786439,1749241861338,-151.0,0.0002789,7]
[364786440,1749241861347,-151.0,0.0002789,7]
[364786441,1749241861357,-151.0,0.0002789,7]
[364786442,1749241861367,-151.0,0.0002789,7]
[364786443,1749241861377,-151.0,0.0002789,7]
[364786444,1749241861387,-151.0,0.0002789,7]
[364786445,1749241861397,-403.034295,0.0002789,7]
[364786446,1749241861407,-1263.192168,0.0002789,7]
[364786447,1749241861417,-403.034295,0.0002789,7]
[364786448,1749241861428,-1263.192168,0.0002789,7]
[364786449,1749241861439,-151.0,0.0002789,7]
[364786450,1749241861449,-151.0,0.0002789,7]
[364786451,1749241861458,-151.0,0.0002789,7]
[364786452,1749241861468,-151.0,0.0002789,7]
[364786453,1749241861478,-151.0,0.0002789,7]
[364786454,1749241861488,-151.0,0.0002789,7]
[364786455,1749241861498,-151.0,0.0002789,7]
[364786456,1749241861508,-151.0,0.0002789,7]
[364786457,1749241861518,-151.0,0.0002789,7]
[364786458,1749241861528,-151.0,0.0002789,7]
[364786459,1749241861538,-238.937422,0.0002789,7]
[364786460,1749241861548,-151.0,0.0002789,7]
[364786461,1749241861558,-151.0,0.0002789,7]
[364786462,1749241861568,-183.681797,0.0002789,7]
[364786463,1749241861577,-183.681797,0.0002789,7]
[364786464,1749241861587,-151.0,0.0002789,7]
[364786465,1749241861596,-184.953576,0.0002789,7]
[364786466,1749241861605,-184.953576,0.0002789,7]
[364786467,1749241861615,-1037.945732,0.0002789,7]
[364786468,1749241861624,-1037.945732,0.0002789,7]
[364786469,1749241861634,-160.122674,0.0002789,7]
[364786470,1749241861644,-1463.594543,0.0002789,5]
[364786471,1749241861654,-1652.978713,0.0002789,5]
[364786472,1749241861665,-156.813701,0.0002789,5]
[364786473,1749241861675,-151.0,0.0002789,7]
[364786474,1749241861686,-480.0,0.0002789,5]
[364786475,1749241861696,-480.0,0.0002789,5]
[364786476,1749241861706,-480.0,0.0002789,5]
[364786477,1749241861715,-151.0,0.0002789,7]
[364786478,1749241861725,-151.0,0.0002789,7]
[364786479,1749241861734,-480.0,0.0002789,5]
[364786480,1749241861744,-151.0,0.0002789,7]
[364786481,1749241861753,-280.793429,0.0002789,7]
[364786482,1749241861763,-280.793429,0.0002789,7]
[364786483,1749241861776,-480.0,0.0002789,5]
[364786484,1749241861785,-151.0,0.0002789,7]
[364786485,1749241861795,-480.0,0.0002789,5]
[364786486,1749241861806,-480.0,0.0002789,5]
[364786487,1749241861815,-480.0,0.0002789,5]
[364786488,1749241861826,-305.730752,0.0002789,7]
[364786489,1749241861836,-305.730752,0.0002789,7]
[364786490,1749241861846,-151.0,0.0002789,7]
[364786491,1749241861857,-480.0,0.0002789,5]
[364786492,1749241861867,-480.0,0.0002789,5]
[364786493,1749241861877,-151.0,0.0002789,7]
[364786494,1749241861886,-480.0,0.0002789,5]
[364786495,1749241861895,-151.0,0.0002789,7]
[364786496,1749241861906,-151.0,0.0002789,7]
[364786497,1749241861915,-186.900191,0.0002789,7]
[364786498,1749241861925,-480.0,0.0002789,5]
[364786499,1749241861934,-186.900191,0.0002789,7]
[364786500,1749241861944,-650.7,0.0002789,2]
[364786501,1749241861953,-480.0,0.0002789,5]
[364786502,1749241861963,-151.0,0.0002789,7]
[364786503,1749241861972,-480.0,0.0002789,5]
[364786504,1749241861981,-480.0,0.0002789,5]
[364786505,1749241861991,-549.3699348,0.0002789,5]
[364786506,1749241862000,-480.0,0.0002789,5]
[364786507,1749241862010,-151.0,0.0002789,7]
[364786508,1749241862020,-1150.67,0.0002789,5]
[364786509,1749241862030,-849.58,0.0002789,5]
[364786510,1749241862039,-151.0,0.0002789,7]
[364786511,1749241862049,-367.21893269,0.0002789,5]
[364786512,1749241862058,-151.0,0.0002789,7]
[364786513,1749241862068,-600.0,0.0002789,30]
[364786514,1749241862077,-1762.69,0.0002789,5]
[364786515,1749241862086,-480.0,0.0002789,5]
[364786516,1749241862095,-521.79,0.0002789,5]
[364786517,1749241862105,-151.0,0.0002789,7]
[364786518,1749241862114,-480.0,0.0002789,5]
[364786519,1749241862123,-214.63189952,0.0002789,5]
[364786520,1749241862132,-167.787558,0.0002789,7]
[364786521,1749241862142,-480.0,0.0002789,5]
[364786522,1749241862151,-480.0,0.0002789,5]
[364786523,1749241862160,-167.787558,0.0002789,7]
[364786524,1749241862170,-1155.6,0.0002789,5]
[364786525,1749241862180,-151.0,0.0002789,7]
[364786526,1749241862189,-1160.86,0.0002789,5]
[364786527,1749241862199,-519.58,0.0002789,5]
[364786528,1749241862208,-552.94,0.0002789,5]
[364786529,1749241862218,-950.71,0.0002789,5]
[364786530,1749241862227,-480.0,0.0002789,5]
[364786531,1749241862237,-675.25,0.0002789,5]
[364786532,1749241862246,-480.0,0.0002789,5]
[364786533,1749241862256,-885.57,0.0002789,5]
[364786534,1749241862266,-480.0,0.0002789,5]
[364786535,1749241862275,-480.0,0.0002789,5]
[364786536,1749241862285,-666.72,0.0002789,5]
[364786537,1749241862294,-480.0,0.0002789,5]
[364786538,1749241862305,-151.0,0.0002789,7]
[364786539,1749241862314,-1073.7,0.0002789,5]
[364786540,1749241862323,-519.6,0.0002789,5]
[364786541,1749241862333,-230.345176,0.0002789,7]
[364786542,1749241862343,-511.45,0.0002789,5]
[364786543,1749241862352,-499.44,0.0002789,5]
[364786544,1749241862361,-803.55,0.0002789,5]
[364786545,1749241862371,-256.28023242,0.0002789,5]
[364786546,1749241862380,-480.0,0.0002789,5]
[364786547,1749241862390,-579.61,0.0002789,5]
[364786548,1749241862399,-480.0,0.0002789,5]
[364786549,1749241862409,-607.44,0.0002789,5]
[364786550,1749241862418,-883.54,0.0002789,5]
[364786551,1749241862427,-838.95,0.0002789,5]
[364786552,1749241862438,-480.0,0.0002789,5]
[364786553,1749241862448,-480.0,0.0002789,5]
[364786554,1749241862458,-480.0,0.0002789,5]
[364786555,1749241862526,-732.08,0.0002789,5]
[364786556,1749241862536,-646.34,0.0002789,5]
[364786557,1749241862545,-480.0,0.0002789,5]
[364786558,1749241862555,-574.86,0.0002789,5]
[364786559,1749241862564,-480.0,0.0002789,5]
[364786560,1749241862574,-151.0,0.0002789,7]
[364786561,1749241862584,-480.0,0.0002789,5]
[364786562,1749241862594,-480.0,0.0002789,5]
[364786563,1749241862603,-151.0,0.0002789,7]
[364786564,1749241862612,-480.0,0.0002789,5]
[364786565,1749241862622,-518.75,0.0002789,5]
[364786566,1749241862631,-951.19,0.0002789,5]
[364786567,1749241862640,-779.94,0.0002789,5]
[364786568,1749241862651,-480.0,0.0002789,5]
[364786569,1749241862660,-689.83,0.0002789,5]
[364786570,1749241862669,-151.0,0.0002789,7]
[364786571,1749241862679,-1012.85,0.0002789,5]
[364786572,1749241862688,-482.38,0.0002789,5]
[364786573,1749241862698,-480.0,0.0002789,5]
[364786574,1749241862707,-151.0,0.0002789,7]
[364786575,1749241862717,-285.87052552,0.0002789,5]
[364786576,1749241862726,-713.99,0.0002789,5]
[364786577,1749241862736,-480.0,0.0002789,5]
[364786578,1749241862746,-549.54,0.0002789,5]
[364786579,1749241862755,-480.0,0.0002789,5]
[364786580,1749241862765,-480.0,0.0002789,5]
[364786581,1749241862776,-480.0,0.0002789,5]
[364786582,1749241862786,-891.22,0.0002789,5]
[364786583,1749241862796,-1010.55,0.0002789,5]
[364786584,1749241862806,-480.0,0.0002789,5]
[364786585,1749241862818,-580.5,0.0002789,5]
[364786586,1749241862827,-480.0,0.0002789,5]
[364786587,1749241862837,-160.022321,0.0002789,7]
[364786588,1749241862847,-151.0,0.0002789,7]
[364786589,1749241862860,-160.022321,0.0002789,7]
[364786590,1749241862869,-480.0,0.0002789,5]
[364786591,1749241862878,-480.0,0.0002789,5]
[364786592,1749241862888,-480.0,0.0002789,5]
[364786593,1749241862897,-701.32114,0.0002789,7]
[364786594,1749241862907,-415.24672384,0.0002789,5]
[364786595,1749241862916,-240.64507,0.0002789,7]
[364786596,1749241862926,-787.11,0.0002789,5]
[364786597,1749241862936,-151.0,0.0002789,7]
[364786598,1749241862945,-240.64507,0.0002789,7]
[364786599,1749241862954,-480.0,0.0002789,5]
[364786600,1749241862964,-701.32114,0.0002789,7]
[364786601,1749241862974,-247.548234,0.0002789,7]
[364786602,1749241862984,-480.0,0.0002789,5]
[364786603,1749241862995,-801.53,0.0002789,5]
[364786604,1749241863004,-247.548234,0.0002789,7]
[364786605,1749241863014,-547.92,0.0002789,5]
[364786606,1749241863023,-480.0,0.0002789,5]
[364786607,1749241863033,-788.62,0.0002789,5]
[364786608,1749241863042,-823.95,0.0002789,5]
[364786609,1749241863053,-155.344461,0.0002789,7]
[364786610,1749241863063,-540.55,0.0002789,5]
[364786611,1749241863073,-155.344461,0.0002789,7]
[364786612,1749241863084,-1667.28,0.0002789,5]
[364786613,1749241863094,-480.0,0.0002789,5]
[364786614,1749241863104,-480.0,0.0002789,5]
[364786615,1749241863113,-151.0,0.0002789,7]
[364786616,1749241863123,-708.27,0.0002789,5]
[364786617,1749241863133,-151.0,0.0002789,7]
[364786618,1749241863143,-815.35,0.0002789,5]
[364786619,1749241863152,-472.40955291,0.0002789,5]
[364786620,1749241863162,-1322.04,0.0002789,5]
[364786621,1749241863172,-788.51,0.0002789,5]
[364786622,1749241863182,-480.0,0.0002789,5]
[364786623,1749241863193,-1588.19,0.0002789,5]
[364786624,1749241863213,-894.23,0.0002789,5]
[364786625,1749241863229,-151.0,0.0002789,7]
[364786626,1749241863240,-493.66,0.0002789,5]
[364786627,1749241863250,-627.73,0.0002789,5]
[364786628,1749241863260,-907.31,0.0002789,5]
[364786629,1749241863270,-1000.0,0.0002789,5]
[364786630,1749241863280,-543.94,0.0002789,5]
[364786631,1749241863300,-151.0,0.0002789,7]
[364786632,1749241863317,-907.9,0.0002789,5]
[364786633,1749241863327,-151.0,0.0002789,7]
[364786634,1749241863337,-480.0,0.0002789,5]
[364786635,1749241863347,-612.39,0.0002789,5]
[364786636,1749241863357,-908.3,0.0002789,5]
[364786637,1749241863366,-156.813701,0.0002789,5]
[364786638,1749241863376,-480.0,0.0002789,5]
[364786639,1749241863386,-480.0,0.0002789,5]
[364786640,1749241863396,-3267.11,0.0002789,5]
[364786641,1749241863407,-778.17,0.0002789,5]
[364786642,1749241863417,-948.36,0.0002789,5]
[364786643,1749241863427,-1438.85,0.0002789,5]
[364786644,1749241863438,-150.270793,0.0002789,5]
[364786645,1749241863448,-542.99,0.0002789,5]
[364786646,1749241863459,-555.32,0.0002789,5]
[364786647,1749241863469,-480.0,0.0002789,5]
[364786648,1749241863479,-1535.87,0.0002789,5]
[364786649,1749241863489,-480.0,0.0002789,5]
[364786650,1749241863498,-314.73612683,0.0002789,5]
[364786651,1749241863509,-1296.25,0.0002789,5]
[364786652,1749241863519,-480.0,0.0002789,5]
[364786653,1749241863529,-516.58,0.0002789,5]
[364786654,1749241863539,-538.08,0.0002789,5]
[364786655,1749241863550,-1575.78,0.0002789,5]
[364786656,1749241863560,-821.990228,0.0002789,7]
[364786657,1749241863569,-805.066752,0.0002789,7]
[364786658,1749241863579,-158.659202,0.0002789,7]
[364786659,1749241863589,-821.990228,0.0002789,7]
[364786660,1749241863599,-970.72,0.0002789,5]
[364786661,1749241863608,-983.05591,0.0002789,7]
[364786662,1749241863618,-805.066752,0.0002789,7]
[364786663,1749241863627,-2734.62,0.0002789,5]
[364786664,1749241863637,-158.659202,0.0002789,7]
[364786665,1749241863647,-1837.71,0.0002789,5]
[364786666,1749241863656,-480.0,0.0002789,5]
[364786667,1749241863666,-983.05591,0.0002789,7]
[364786668,1749241863676,-2758.24,0.0002789,5]
[364786669,1749241863685,-4609.26,0.0002789,5]
[364786670,1749241863695,-480.0,0.0002789,5]
[364786671,1749241863705,-819.99,0.0002789,5]
[364786672,1749241863715,-1046.07,0.0002789,5]
[364786673,1749241863725,-480.0,0.0002789,5]
[364786674,1749241863735,-3979.76,0.0002789,5]
[364786675,1749241863745,-902.21,0.0002789,5]
[364786676,1749241863755,-349.68,0.0002789,5]
[364786677,1749241863765,-480.0,0.0002789,5]
[364786678,1749241863780,-300.0,0.0002789,5]
[364786679,1749241863793,-599.88,0.0002789,5]
[364786680,1749241863804,-480.0,0.0002789,5]
[364786681,1749241863814,-7399.63,0.0002789,5]
[364786682,1749241863826,-765.24,0.0002789,5]
[364786683,1749241863836,-57460.09,0.0002789,5]
[364786684,1749241863847,-480.0,0.0002789,5]
[364786685,1749241863860,-703.27,0.0002789,5]
[364786686,1749241863870,-450.0,0.0002789,2]
[364786687,1749241863881,-450.0,0.0002789,2]
[364786688,1749241863893,-480.0,0.0002789,5]
[364786689,1749241863904,-450.0,0.0002789,2]
[364786690,1749241863915,-450.0,0.0002789,2]
[364786691,1749241863924,-321.241382,0.0002789,2]
[364786692,1749241863934,-4676.37,0.0002789,5]
[364786693,1749241863944,-480.0,0.0002789,5]
[364786694,1749241863954,-2938.32,0.0002789,5]
[364786695,1749241863964,-1379.45,0.0002789,5]
[364786696,1749241863974,-7478.95,0.0002789,5]
[364786697,1749241863983,-755.4,0.0002789,5]
[364786698,1749241863994,-607.62,0.0002789,5]
[364786699,1749241864004,-480.0,0.0002789,5]
[364786700,1749241864017,-151.0,0.0002789,7]
[364786701,1749241864027,-3373.75,0.0002789,5]
[364786702,1749241864037,-1091.95,0.0002789,5]
[364786703,1749241864047,-1260.18,0.0002789,5]
[364786704,1749241864057,-949.92,0.0002789,5]
[364786705,1749241864067,-9118.0,0.0002789,5]
[364786706,1749241864076,-480.0,0.0002789,5]
[364786707,1749241864086,-520.51,0.0002789,5]
[364786708,1749241864096,-480.0,0.0002789,5]
[364786709,1749241864106,-597.4,0.0002789,5]
[364786710,1749241864122,-1500.48,0.0002789,5]
[364786711,1749241864138,-1073.19,0.0002789,5]
[364786712,1749241864148,-2617.35,0.0002789,5]
[364786713,1749241864158,-1091.83,0.0002789,5]
[364786714,1749241864167,-1000.0,0.0002789,5]
[364786715,1749241864177,-1000.0,0.0002789,2]
[364786716,1749241864187,-480.0,0.0002789,5]
[364786717,1749241864197,-480.0,0.0002789,5]
[364786718,1749241864207,-2954.48,0.0002789,5]
[364786719,1749241864217,-480.0,0.0002789,5]
[364786720,1749241864227,-676.46,0.0002789,5]
[364786721,1749241864237,-480.0,0.0002789,5]
[364786722,1749241864246,-480.0,0.0002789,5]
[364786723,1749241864256,-1100.1,0.0002789,5]
[364786724,1749241864266,-774.3,0.0002789,5]
[364786725,1749241864276,-909.08,0.0002789,5]
[364786726,1749241864286,-771.25,0.0002789,5]
[364786727,1749241864296,-1341.13,0.0002789,5]
[364786728,1749241864305,-480.0,0.0002789,5]
[364786729,1749241864315,-1674.49,0.0002789,5]
[364786730,1749241864325,-480.0,0.0002789,5]
[364786731,1749241864334,-2363.43,0.0002789,5]
[364786732,1749241864345,-1778.5,0.0002789,5]
[364786733,1749241864354,-2094.52,0.0002789,5]
[364786734,1749241864364,-480.0,0.0002789,5]
[364786735,1749241864374,-2998.55,0.0002789,5]
[364786736,1749241864384,-837.35,0.0002789,5]
[364786737,1749241864393,-1324.98,0.0002789,5]
[364786738,1749241864403,-822.69,0.0002789,5]
[364786739,1749241864412,-4354.28,0.0002789,5]
[364786740,1749241864421,-10833.54,0.0002789,5]
[364786741,1749241864431,-1172.56,0.0002789,5]
[364786742,1749241864441,-480.0,0.0002789,5]
[364786743,1749241864451,-2910.79,0.0002789,5]
[364786744,1749241864462,-151.0,0.0002789,7]
[364786745,1749241864471,-480.0,0.0002789,5]
[364786746,1749241864481,-188.981441,0.0002789,7]
[364786747,1749241864491,-1425.98,0.0002789,5]
[364786748,1749241864501,-1161.29,0.0002789,5]
[364786749,1749241864512,-701.08,0.0002789,5]
[364786750,1749241864522,-480.0,0.0002789,5]
[364786751,1749241864531,-725.11,0.0002789,5]
[364786752,1749241864541,-188.981441,0.0002789,7]
[364786753,1749241864551,-891.78,0.0002789,5]
[364786754,1749241864560,-622.3,0.0002789,5]
[364786755,1749241864570,-480.0,0.0002789,5]
[364786756,1749241864579,-2822.75,0.0002789,5]
[364786757,1749241864589,-1363.03,0.0002789,5]
[364786758,1749241864599,-480.0,0.0002789,5]
[364786759,1749241864608,-3135.14,0.0002789,5]
[364786760,1749241864618,-1180.93,0.0002789,5]
[364786761,1749241864627,-931.09,0.0002789,5]
[364786762,1749241864636,-480.0,0.0002789,5]
[364786763,1749241864646,-1414.51,0.0002789,5]
[364786764,1749241864655,-1155.88,0.0002789,5]
[364786765,1749241864664,-4001.96,0.0002789,5]
[364786766,1749241864673,-552.73,0.0002789,5]
[364786767,1749241864682,-632.88,0.0002789,5]
[364786768,1749241864691,-1526.89,0.0002789,5]
[364786769,1749241864701,-480.0,0.0002789,5]
[364786770,1749241864710,-1010.46,0.0002789,5]
[364786771,1749241864719,-480.0,0.0002789,5]
[364786772,1749241864728,-471.158267,0.0002789,7]
[364786773,1749241864738,-1132.61,0.0002789,5]
[364786774,1749241864748,-593.39,0.0002789,5]
[364786775,1749241864757,-151.0,0.0002789,7]
[364786776,1749241864766,-480.0,0.0002789,5]
[364786777,1749241864778,-471.158267,0.0002789,7]
[364786778,1749241864788,-1110.02,0.0002789,5]
[364786779,1749241864798,-533.37,0.0002789,5]
[364786780,1749241864809,-4560.52,0.0002789,5]
[364786781,1749241864819,-480.0,0.0002789,5]
[364786782,1749241864829,-1741.06,0.0002789,5]
[364786783,1749241864838,-480.0,0.0002789,5]
[364786784,1749241864847,-480.0,0.0002789,5]
[364786785,1749241864858,-480.0,0.0002789,5]
[364786786,1749241864868,-1207.6,0.0002789,5]
[364786787,1749241864878,-480.0,0.0002789,5]
[364786788,1749241864887,-480.0,0.0002789,5]
[364786789,1749241864897,-526.84,0.0002789,5]
[364786790,1749241864907,-625.4,0.0002789,5]
[364786791,1749241864917,-776.39,0.0002789,5]
[364786792,1749241864927,-1627.41,0.0002789,5]
[364786793,1749241864936,-947.268152,0.0002789,7]
[364786794,1749241864946,-959.5,0.0002789,5]
[364786795,1749241864956,-480.0,0.0002789,5]
[364786796,1749241864965,-3166.58,0.0002789,5]
[364786797,1749241864974,-947.268152,0.0002789,7]
[364786798,1749241864983,-480.0,0.0002789,5]
[364786799,1749241864993,-480.0,0.0002789,5]
[364786800,1749241865002,-480.0,0.0002789,5]
[364786801,1749241865012,-1176.26,0.0002789,5]
[364786802,1749241865021,-1451.66,0.0002789,5]
[364786803,1749241865031,-480.0,0.0002789,5]
[364786804,1749241865040,-536.17318438,0.0002789,5]
[364786805,1749241865049,-480.0,0.0002789,5]
[364786806,1749241865060,-480.0,0.0002789,5]
[364786807,1749241865070,-480.0,0.0002789,5]
[364786808,1749241865079,-480.0,0.0002789,5]
[364786809,1749241865093,-480.0,0.0002789,5]